{"text_format":"3","workbook":"xlsx","n_sheets":3,"sheets":["Denník jázd","Údaje denníka","výpočty"],"not_rendered":{"charts":1,"defined_names":17},"read":"whole","date_system":"1900"}

{"sheet":"Denník jázd","index":0,"n_rows":29,"n_cols":5,"rows_kept":29,"merged":[[0,1,1,4]]}
[null,"DENNÍK JÁZD"]
{"$rows_empty":9}
[null,null,"NAHRADITEĽNÉ",null,"CELKOM"]
[null,null,"KILOMETRE",null,"NÁHRADA"]
[]
[]
[]
[]
[null,null,"2012-05-01",null,"2012-05-10"]
[]
[null,null,"OBDOBIE",null,"OBDOBIE"]
[null,null,"ZAČIATOK",null,"KONIEC"]
[]
[]
[]
[]
[]
[null,null,54,null,{"v":9800,"d":"9,800"}]
[]
[null,null,"NÁHRADA",null,"PREDCHÁDZAJÚCI STAV PALIVA"]
[null,null,"¢/Kilometer",null,"POČÍTADLO NAJAZDENÝCH KM"]

{"sheet":"Údaje denníka","index":1,"n_rows":19,"n_cols":15,"rows_kept":19,"merged":[[0,1,1,4]]}
[null,"DENNÍK JÁZD"]
[{"$nulls":14}," "]
[]
[]
[null,"DÁTUM","ČINNOSť","POČÍTADLO 1","MIESTO","POČÍTADLO 2","CIEĽ","NÁHRADA","LITRE","NÁKLADY","KILOMETRE","KM/L","¢/KILOMETER","POZNÁMKY"]
[null,"2012-05-01","Cesta",{"v":10123,"d":"10,123"},"Bratislava – hlavná st.",{"v":10130,"d":"10,130"},null,null,15.56,{"v":64.11,"d":"64.11 €"},{"$f":"kilometre","v":7},{"$f":"IF(OR(LEN(údaje[[#This Row],[POČÍTADLO 2]]),údaje[[#This Row],[POČÍTADLO 1]]=\"\"),\"\",IFERROR(údaje[[#This Row],[KILOMETRE]]/údaje[[#This Row],[LITRE]],\"\"))","v":""},{"$f":"IF(údaje[[#This Row],[KM/L]]=\"\",\"\",100*údaje[[#This Row],[NÁKLADY]]/údaje[[#This Row],[KILOMETRE]])","v":""}]
[null,"2012-05-01","Cesta",{"v":10130,"d":"10,130"},"Kancelária",{"v":10200,"d":"10,200"},"Balkánska ul.","Áno",null,"",{"$f":"kilometre","v":70},{"$f":"IF(OR(LEN(údaje[[#This Row],[POČÍTADLO 2]]),údaje[[#This Row],[POČÍTADLO 1]]=\"\"),\"\",IFERROR(údaje[[#This Row],[KILOMETRE]]/údaje[[#This Row],[LITRE]],\"\"))","v":""},{"$f":"IF(údaje[[#This Row],[KM/L]]=\"\",\"\",100*údaje[[#This Row],[NÁKLADY]]/údaje[[#This Row],[KILOMETRE]])","v":""}]
[null,"2012-05-01","Cesta",{"v":10200,"d":"10,200"},"Sládkovičovo",{"v":10285,"d":"10,285"},"Kancelária","Áno",null,"",{"$f":"kilometre","v":85},{"$f":"IF(OR(LEN(údaje[[#This Row],[POČÍTADLO 2]]),údaje[[#This Row],[POČÍTADLO 1]]=\"\"),\"\",IFERROR(údaje[[#This Row],[KILOMETRE]]/údaje[[#This Row],[LITRE]],\"\"))","v":""},{"$f":"IF(údaje[[#This Row],[KM/L]]=\"\",\"\",100*údaje[[#This Row],[NÁKLADY]]/údaje[[#This Row],[KILOMETRE]])","v":""}]
[null,"2012-05-02","Cesta",{"v":10285,"d":"10,285"},"Kancelária",{"v":10450,"d":"10,450"},"Modra","Áno",null,"",{"$f":"kilometre","v":165},{"$f":"IF(OR(LEN(údaje[[#This Row],[POČÍTADLO 2]]),údaje[[#This Row],[POČÍTADLO 1]]=\"\"),\"\",IFERROR(údaje[[#This Row],[KILOMETRE]]/údaje[[#This Row],[LITRE]],\"\"))","v":""},{"$f":"IF(údaje[[#This Row],[KM/L]]=\"\",\"\",100*údaje[[#This Row],[NÁKLADY]]/údaje[[#This Row],[KILOMETRE]])","v":""}]
[null,"2012-05-02","Palivo",{"v":10450,"d":"10,450"},"Shell",{"$nulls":3},{"v":11.2,"d":"11.20"},{"v":55.42,"d":"55.42 €"},{"$f":"kilometre","v":650},{"$f":"IF(OR(LEN(údaje[[#This Row],[POČÍTADLO 2]]),údaje[[#This Row],[POČÍTADLO 1]]=\"\"),\"\",IFERROR(údaje[[#This Row],[KILOMETRE]]/údaje[[#This Row],[LITRE]],\"\"))","v":{"v":58.03571428571429,"d":"58.0"}},{"$f":"IF(údaje[[#This Row],[KM/L]]=\"\",\"\",100*údaje[[#This Row],[NÁKLADY]]/údaje[[#This Row],[KILOMETRE]])","v":{"v":8.526153846153846,"d":"8.5"}}]
[null,"2012-05-02","Cesta",{"v":10500,"d":"10,500"},"Modra",{"v":10518,"d":"10,518"},"Kancelária","Áno",null,"",{"$f":"kilometre","v":18},{"$f":"IF(OR(LEN(údaje[[#This Row],[POČÍTADLO 2]]),údaje[[#This Row],[POČÍTADLO 1]]=\"\"),\"\",IFERROR(údaje[[#This Row],[KILOMETRE]]/údaje[[#This Row],[LITRE]],\"\"))","v":""},{"$f":"IF(údaje[[#This Row],[KM/L]]=\"\",\"\",100*údaje[[#This Row],[NÁKLADY]]/údaje[[#This Row],[KILOMETRE]])","v":""}]
[null,"2012-05-03","Cesta",{"v":10518,"d":"10,518"},"Kancelária",{"v":10745,"d":"10,745"},"Kancelária","Áno",null,"",{"$f":"kilometre","v":227},{"$f":"IF(OR(LEN(údaje[[#This Row],[POČÍTADLO 2]]),údaje[[#This Row],[POČÍTADLO 1]]=\"\"),\"\",IFERROR(údaje[[#This Row],[KILOMETRE]]/údaje[[#This Row],[LITRE]],\"\"))","v":""},{"$f":"IF(údaje[[#This Row],[KM/L]]=\"\",\"\",100*údaje[[#This Row],[NÁKLADY]]/údaje[[#This Row],[KILOMETRE]])","v":""}]
[null,"2012-05-04","Palivo",{"v":10745,"d":"10,745"},"Bratislava – hlavná st.",{"$nulls":3},{"v":16.6,"d":"16.60"},{"v":69.24,"d":"69.24 €"},{"$f":"kilometre","v":295},{"$f":"IF(OR(LEN(údaje[[#This Row],[POČÍTADLO 2]]),údaje[[#This Row],[POČÍTADLO 1]]=\"\"),\"\",IFERROR(údaje[[#This Row],[KILOMETRE]]/údaje[[#This Row],[LITRE]],\"\"))","v":{"v":17.771084337349397,"d":"17.8"}},{"$f":"IF(údaje[[#This Row],[KM/L]]=\"\",\"\",100*údaje[[#This Row],[NÁKLADY]]/údaje[[#This Row],[KILOMETRE]])","v":{"v":23.471186440677965,"d":"23.5"}}]
[null,"2012-05-04","Cesta",{"v":10745,"d":"10,745"},"Kancelária",{"v":10800,"d":"10,800"},"Bratislava – Rača","Áno",null,"",{"$f":"kilometre","v":55},{"$f":"IF(OR(LEN(údaje[[#This Row],[POČÍTADLO 2]]),údaje[[#This Row],[POČÍTADLO 1]]=\"\"),\"\",IFERROR(údaje[[#This Row],[KILOMETRE]]/údaje[[#This Row],[LITRE]],\"\"))","v":""},{"$f":"IF(údaje[[#This Row],[KM/L]]=\"\",\"\",100*údaje[[#This Row],[NÁKLADY]]/údaje[[#This Row],[KILOMETRE]])","v":""}]
[null,"2012-05-04","Cesta",{"v":10800,"d":"10,800"},"Bratislava – Rača",{"v":10875,"d":"10,875"},"Kancelária","Áno",null,"",{"$f":"kilometre","v":75},{"$f":"IF(OR(LEN(údaje[[#This Row],[POČÍTADLO 2]]),údaje[[#This Row],[POČÍTADLO 1]]=\"\"),\"\",IFERROR(údaje[[#This Row],[KILOMETRE]]/údaje[[#This Row],[LITRE]],\"\"))","v":""},{"$f":"IF(údaje[[#This Row],[KM/L]]=\"\",\"\",100*údaje[[#This Row],[NÁKLADY]]/údaje[[#This Row],[KILOMETRE]])","v":""}]
[null,"2012-05-07","Cesta",{"v":10875,"d":"10,875"},"Kancelária",{"v":10921,"d":"10,921"},"Balkánska ul.","Áno",null,"",{"$f":"kilometre","v":46},{"$f":"IF(OR(LEN(údaje[[#This Row],[POČÍTADLO 2]]),údaje[[#This Row],[POČÍTADLO 1]]=\"\"),\"\",IFERROR(údaje[[#This Row],[KILOMETRE]]/údaje[[#This Row],[LITRE]],\"\"))","v":""},{"$f":"IF(údaje[[#This Row],[KM/L]]=\"\",\"\",100*údaje[[#This Row],[NÁKLADY]]/údaje[[#This Row],[KILOMETRE]])","v":""}]
[null,"2012-05-07","Cesta",{"v":10921,"d":"10,921"},"Sládkovičovo",{"v":10969,"d":"10,969"},"Kancelária","Áno",null,"",{"$f":"kilometre","v":48},{"$f":"IF(OR(LEN(údaje[[#This Row],[POČÍTADLO 2]]),údaje[[#This Row],[POČÍTADLO 1]]=\"\"),\"\",IFERROR(údaje[[#This Row],[KILOMETRE]]/údaje[[#This Row],[LITRE]],\"\"))","v":""},{"$f":"IF(údaje[[#This Row],[KM/L]]=\"\",\"\",100*údaje[[#This Row],[NÁKLADY]]/údaje[[#This Row],[KILOMETRE]])","v":""}]
[null,"2012-05-09","Cesta",{"v":10969,"d":"10,969"},"Kancelária",{"v":11000,"d":"11,000"},"Trnava","Áno",null,"",{"$f":"kilometre","v":31},{"$f":"IF(OR(LEN(údaje[[#This Row],[POČÍTADLO 2]]),údaje[[#This Row],[POČÍTADLO 1]]=\"\"),\"\",IFERROR(údaje[[#This Row],[KILOMETRE]]/údaje[[#This Row],[LITRE]],\"\"))","v":""},{"$f":"IF(údaje[[#This Row],[KM/L]]=\"\",\"\",100*údaje[[#This Row],[NÁKLADY]]/údaje[[#This Row],[KILOMETRE]])","v":""}]
[null,"2012-05-09","Cesta",{"v":11000,"d":"11,000"},"Trnava",{"v":11100,"d":"11,100"},"Domov","NIE",null,"",{"$f":"kilometre","v":100},{"$f":"IF(OR(LEN(údaje[[#This Row],[POČÍTADLO 2]]),údaje[[#This Row],[POČÍTADLO 1]]=\"\"),\"\",IFERROR(údaje[[#This Row],[KILOMETRE]]/údaje[[#This Row],[LITRE]],\"\"))","v":""},{"$f":"IF(údaje[[#This Row],[KM/L]]=\"\",\"\",100*údaje[[#This Row],[NÁKLADY]]/údaje[[#This Row],[KILOMETRE]])","v":""}]

{"sheet":"výpočty","index":2,"n_rows":69,"n_cols":13,"rows_kept":69,"hidden":true}
["*** Tento hárok zostane skrytý ***"]
[]
[]
[]
[]
[{"$nulls":8},{"$f":"OFFSET(I9,,druháNáprava=\"Náklady na palivo\")","v":"¢/Kilometer"}]
[{"$nulls":12},2]
[{"$nulls":7},"Cesta","Palivo","Palivo",null,"Druhá náprava:  ",{"$f":"REPT(\"KM/L\",M7=1)&REPT(\"Náklady na palivo\",M7=2)","v":"Náklady na palivo"}]
[{"$nulls":7},"Najazdené kilometre","KM/L","¢/Kilometer"]
[null,null,"Nahraditeľné kilometre:  ",{"$f":"SUMIFS(údaje[KILOMETRE],údaje[NÁHRADA],\"Áno\",údaje[DÁTUM],\">=\"&obdobieZačiatok,údaje[DÁTUM],\"<=\"&obdobieKoniec)","v":820},null,1,{"$f":"obdobieZačiatok","v":"2012-05-01"},{"$f":"SUMIFS(údaje[KILOMETRE],údaje[DÁTUM],G10,údaje[ČINNOSť],$H$8)","v":162},{"$f":"IFERROR(AVERAGEIFS(údaje[KM/L],údaje[DÁTUM],G10,údaje[ČINNOSť],$I$8),NA())","v":{"$error":"#N/A"}},{"$f":"IFERROR(AVERAGEIFS(údaje[¢/KILOMETER],údaje[DÁTUM],G10,údaje[ČINNOSť],$J$8),NA())","v":{"$error":"#N/A"}}]
[null,null,"Celková náhrada:  ",{"$f":"D10*NáhradaZaKilometer/100","v":{"v":442.8,"d":"442.80 €"}},null,2,{"$f":"G10+1","v":"2012-05-02"},{"$f":"SUMIFS(údaje[KILOMETRE],údaje[DÁTUM],G11,údaje[ČINNOSť],$H$8)","v":183},{"$f":"IFERROR(AVERAGEIFS(údaje[KM/L],údaje[DÁTUM],G11,údaje[ČINNOSť],$I$8),NA())","v":{"v":58.03571428571429,"d":"58.0"}},{"$f":"IFERROR(AVERAGEIFS(údaje[¢/KILOMETER],údaje[DÁTUM],G11,údaje[ČINNOSť],$J$8),NA())","v":{"v":8.526153846153846,"d":"8.5"}}]
[{"$nulls":5},3,"2012-05-03",{"$f":"SUMIFS(údaje[KILOMETRE],údaje[DÁTUM],G12,údaje[ČINNOSť],$H$8)","v":227},{"$f":"IFERROR(AVERAGEIFS(údaje[KM/L],údaje[DÁTUM],G12,údaje[ČINNOSť],$I$8),NA())","v":{"$error":"#N/A"}},{"$f":"IFERROR(AVERAGEIFS(údaje[¢/KILOMETER],údaje[DÁTUM],G12,údaje[ČINNOSť],$J$8),NA())","v":{"$error":"#N/A"}}]
[{"$nulls":5},4,"2012-05-04",{"$f":"SUMIFS(údaje[KILOMETRE],údaje[DÁTUM],G13,údaje[ČINNOSť],$H$8)","v":130},{"$f":"IFERROR(AVERAGEIFS(údaje[KM/L],údaje[DÁTUM],G13,údaje[ČINNOSť],$I$8),NA())","v":{"v":17.771084337349397,"d":"17.8"}},{"$f":"IFERROR(AVERAGEIFS(údaje[¢/KILOMETER],údaje[DÁTUM],G13,údaje[ČINNOSť],$J$8),NA())","v":{"v":23.471186440677965,"d":"23.5"}}]
[{"$nulls":5},5,"2012-05-05",{"$f":"SUMIFS(údaje[KILOMETRE],údaje[DÁTUM],G14,údaje[ČINNOSť],$H$8)","v":0},{"$f":"IFERROR(AVERAGEIFS(údaje[KM/L],údaje[DÁTUM],G14,údaje[ČINNOSť],$I$8),NA())","v":{"$error":"#N/A"}},{"$f":"IFERROR(AVERAGEIFS(údaje[¢/KILOMETER],údaje[DÁTUM],G14,údaje[ČINNOSť],$J$8),NA())","v":{"$error":"#N/A"}}]
[{"$nulls":5},6,"2012-05-06",{"$f":"SUMIFS(údaje[KILOMETRE],údaje[DÁTUM],G15,údaje[ČINNOSť],$H$8)","v":0},{"$f":"IFERROR(AVERAGEIFS(údaje[KM/L],údaje[DÁTUM],G15,údaje[ČINNOSť],$I$8),NA())","v":{"$error":"#N/A"}},{"$f":"IFERROR(AVERAGEIFS(údaje[¢/KILOMETER],údaje[DÁTUM],G15,údaje[ČINNOSť],$J$8),NA())","v":{"$error":"#N/A"}}]
[{"$nulls":5},7,"2012-05-07",{"$f":"SUMIFS(údaje[KILOMETRE],údaje[DÁTUM],G16,údaje[ČINNOSť],$H$8)","v":94},{"$f":"IFERROR(AVERAGEIFS(údaje[KM/L],údaje[DÁTUM],G16,údaje[ČINNOSť],$I$8),NA())","v":{"$error":"#N/A"}},{"$f":"IFERROR(AVERAGEIFS(údaje[¢/KILOMETER],údaje[DÁTUM],G16,údaje[ČINNOSť],$J$8),NA())","v":{"$error":"#N/A"}}]
[{"$nulls":5},8,"2012-05-08",{"$f":"SUMIFS(údaje[KILOMETRE],údaje[DÁTUM],G17,údaje[ČINNOSť],$H$8)","v":0},{"$f":"IFERROR(AVERAGEIFS(údaje[KM/L],údaje[DÁTUM],G17,údaje[ČINNOSť],$I$8),NA())","v":{"$error":"#N/A"}},{"$f":"IFERROR(AVERAGEIFS(údaje[¢/KILOMETER],údaje[DÁTUM],G17,údaje[ČINNOSť],$J$8),NA())","v":{"$error":"#N/A"}}]
[{"$nulls":5},9,"2012-05-09",{"$f":"SUMIFS(údaje[KILOMETRE],údaje[DÁTUM],G18,údaje[ČINNOSť],$H$8)","v":131},{"$f":"IFERROR(AVERAGEIFS(údaje[KM/L],údaje[DÁTUM],G18,údaje[ČINNOSť],$I$8),NA())","v":{"$error":"#N/A"}},{"$f":"IFERROR(AVERAGEIFS(údaje[¢/KILOMETER],údaje[DÁTUM],G18,údaje[ČINNOSť],$J$8),NA())","v":{"$error":"#N/A"}}]
[{"$nulls":5},10,"2012-05-10",{"$f":"SUMIFS(údaje[KILOMETRE],údaje[DÁTUM],G19,údaje[ČINNOSť],$H$8)","v":0},{"$f":"IFERROR(AVERAGEIFS(údaje[KM/L],údaje[DÁTUM],G19,údaje[ČINNOSť],$I$8),NA())","v":{"$error":"#N/A"}},{"$f":"IFERROR(AVERAGEIFS(údaje[¢/KILOMETER],údaje[DÁTUM],G19,údaje[ČINNOSť],$J$8),NA())","v":{"$error":"#N/A"}}]
[{"$nulls":5},11,"2012-05-11",{"$f":"SUMIFS(údaje[KILOMETRE],údaje[DÁTUM],G20,údaje[ČINNOSť],$H$8)","v":0},{"$f":"IFERROR(AVERAGEIFS(údaje[KM/L],údaje[DÁTUM],G20,údaje[ČINNOSť],$I$8),NA())","v":{"$error":"#N/A"}},{"$f":"IFERROR(AVERAGEIFS(údaje[¢/KILOMETER],údaje[DÁTUM],G20,údaje[ČINNOSť],$J$8),NA())","v":{"$error":"#N/A"}}]
[{"$nulls":5},12,"2012-05-12",{"$f":"SUMIFS(údaje[KILOMETRE],údaje[DÁTUM],G21,údaje[ČINNOSť],$H$8)","v":0},{"$f":"IFERROR(AVERAGEIFS(údaje[KM/L],údaje[DÁTUM],G21,údaje[ČINNOSť],$I$8),NA())","v":{"$error":"#N/A"}},{"$f":"IFERROR(AVERAGEIFS(údaje[¢/KILOMETER],údaje[DÁTUM],G21,údaje[ČINNOSť],$J$8),NA())","v":{"$error":"#N/A"}}]
[{"$nulls":5},13,"2012-05-13",{"$f":"SUMIFS(údaje[KILOMETRE],údaje[DÁTUM],G22,údaje[ČINNOSť],$H$8)","v":0},{"$f":"IFERROR(AVERAGEIFS(údaje[KM/L],údaje[DÁTUM],G22,údaje[ČINNOSť],$I$8),NA())","v":{"$error":"#N/A"}},{"$f":"IFERROR(AVERAGEIFS(údaje[¢/KILOMETER],údaje[DÁTUM],G22,údaje[ČINNOSť],$J$8),NA())","v":{"$error":"#N/A"}}]
[{"$nulls":5},14,"2012-05-14",{"$f":"SUMIFS(údaje[KILOMETRE],údaje[DÁTUM],G23,údaje[ČINNOSť],$H$8)","v":0},{"$f":"IFERROR(AVERAGEIFS(údaje[KM/L],údaje[DÁTUM],G23,údaje[ČINNOSť],$I$8),NA())","v":{"$error":"#N/A"}},{"$f":"IFERROR(AVERAGEIFS(údaje[¢/KILOMETER],údaje[DÁTUM],G23,údaje[ČINNOSť],$J$8),NA())","v":{"$error":"#N/A"}}]
[{"$nulls":5},15,"2012-05-15",{"$f":"SUMIFS(údaje[KILOMETRE],údaje[DÁTUM],G24,údaje[ČINNOSť],$H$8)","v":0},{"$f":"IFERROR(AVERAGEIFS(údaje[KM/L],údaje[DÁTUM],G24,údaje[ČINNOSť],$I$8),NA())","v":{"$error":"#N/A"}},{"$f":"IFERROR(AVERAGEIFS(údaje[¢/KILOMETER],údaje[DÁTUM],G24,údaje[ČINNOSť],$J$8),NA())","v":{"$error":"#N/A"}}]
[{"$nulls":5},16,"2012-05-16",{"$f":"SUMIFS(údaje[KILOMETRE],údaje[DÁTUM],G25,údaje[ČINNOSť],$H$8)","v":0},{"$f":"IFERROR(AVERAGEIFS(údaje[KM/L],údaje[DÁTUM],G25,údaje[ČINNOSť],$I$8),NA())","v":{"$error":"#N/A"}},{"$f":"IFERROR(AVERAGEIFS(údaje[¢/KILOMETER],údaje[DÁTUM],G25,údaje[ČINNOSť],$J$8),NA())","v":{"$error":"#N/A"}}]
[{"$nulls":5},17,"2012-05-17",{"$f":"SUMIFS(údaje[KILOMETRE],údaje[DÁTUM],G26,údaje[ČINNOSť],$H$8)","v":0},{"$f":"IFERROR(AVERAGEIFS(údaje[KM/L],údaje[DÁTUM],G26,údaje[ČINNOSť],$I$8),NA())","v":{"$error":"#N/A"}},{"$f":"IFERROR(AVERAGEIFS(údaje[¢/KILOMETER],údaje[DÁTUM],G26,údaje[ČINNOSť],$J$8),NA())","v":{"$error":"#N/A"}}]
[{"$nulls":5},18,"2012-05-18",{"$f":"SUMIFS(údaje[KILOMETRE],údaje[DÁTUM],G27,údaje[ČINNOSť],$H$8)","v":0},{"$f":"IFERROR(AVERAGEIFS(údaje[KM/L],údaje[DÁTUM],G27,údaje[ČINNOSť],$I$8),NA())","v":{"$error":"#N/A"}},{"$f":"IFERROR(AVERAGEIFS(údaje[¢/KILOMETER],údaje[DÁTUM],G27,údaje[ČINNOSť],$J$8),NA())","v":{"$error":"#N/A"}}]
[{"$nulls":5},19,"2012-05-19",{"$f":"SUMIFS(údaje[KILOMETRE],údaje[DÁTUM],G28,údaje[ČINNOSť],$H$8)","v":0},{"$f":"IFERROR(AVERAGEIFS(údaje[KM/L],údaje[DÁTUM],G28,údaje[ČINNOSť],$I$8),NA())","v":{"$error":"#N/A"}},{"$f":"IFERROR(AVERAGEIFS(údaje[¢/KILOMETER],údaje[DÁTUM],G28,údaje[ČINNOSť],$J$8),NA())","v":{"$error":"#N/A"}}]
[{"$nulls":5},20,"2012-05-20",{"$f":"SUMIFS(údaje[KILOMETRE],údaje[DÁTUM],G29,údaje[ČINNOSť],$H$8)","v":0},{"$f":"IFERROR(AVERAGEIFS(údaje[KM/L],údaje[DÁTUM],G29,údaje[ČINNOSť],$I$8),NA())","v":{"$error":"#N/A"}},{"$f":"IFERROR(AVERAGEIFS(údaje[¢/KILOMETER],údaje[DÁTUM],G29,údaje[ČINNOSť],$J$8),NA())","v":{"$error":"#N/A"}}]
[{"$nulls":5},21,"2012-05-21",{"$f":"SUMIFS(údaje[KILOMETRE],údaje[DÁTUM],G30,údaje[ČINNOSť],$H$8)","v":0},{"$f":"IFERROR(AVERAGEIFS(údaje[KM/L],údaje[DÁTUM],G30,údaje[ČINNOSť],$I$8),NA())","v":{"$error":"#N/A"}},{"$f":"IFERROR(AVERAGEIFS(údaje[¢/KILOMETER],údaje[DÁTUM],G30,údaje[ČINNOSť],$J$8),NA())","v":{"$error":"#N/A"}}]
[{"$nulls":5},22,"2012-05-22",{"$f":"SUMIFS(údaje[KILOMETRE],údaje[DÁTUM],G31,údaje[ČINNOSť],$H$8)","v":0},{"$f":"IFERROR(AVERAGEIFS(údaje[KM/L],údaje[DÁTUM],G31,údaje[ČINNOSť],$I$8),NA())","v":{"$error":"#N/A"}},{"$f":"IFERROR(AVERAGEIFS(údaje[¢/KILOMETER],údaje[DÁTUM],G31,údaje[ČINNOSť],$J$8),NA())","v":{"$error":"#N/A"}}]
[{"$nulls":5},23,"2012-05-23",{"$f":"SUMIFS(údaje[KILOMETRE],údaje[DÁTUM],G32,údaje[ČINNOSť],$H$8)","v":0},{"$f":"IFERROR(AVERAGEIFS(údaje[KM/L],údaje[DÁTUM],G32,údaje[ČINNOSť],$I$8),NA())","v":{"$error":"#N/A"}},{"$f":"IFERROR(AVERAGEIFS(údaje[¢/KILOMETER],údaje[DÁTUM],G32,údaje[ČINNOSť],$J$8),NA())","v":{"$error":"#N/A"}}]
[{"$nulls":5},24,"2012-05-24",{"$f":"SUMIFS(údaje[KILOMETRE],údaje[DÁTUM],G33,údaje[ČINNOSť],$H$8)","v":0},{"$f":"IFERROR(AVERAGEIFS(údaje[KM/L],údaje[DÁTUM],G33,údaje[ČINNOSť],$I$8),NA())","v":{"$error":"#N/A"}},{"$f":"IFERROR(AVERAGEIFS(údaje[¢/KILOMETER],údaje[DÁTUM],G33,údaje[ČINNOSť],$J$8),NA())","v":{"$error":"#N/A"}}]
[{"$nulls":5},25,"2012-05-25",{"$f":"SUMIFS(údaje[KILOMETRE],údaje[DÁTUM],G34,údaje[ČINNOSť],$H$8)","v":0},{"$f":"IFERROR(AVERAGEIFS(údaje[KM/L],údaje[DÁTUM],G34,údaje[ČINNOSť],$I$8),NA())","v":{"$error":"#N/A"}},{"$f":"IFERROR(AVERAGEIFS(údaje[¢/KILOMETER],údaje[DÁTUM],G34,údaje[ČINNOSť],$J$8),NA())","v":{"$error":"#N/A"}}]
[{"$nulls":5},26,"2012-05-26",{"$f":"SUMIFS(údaje[KILOMETRE],údaje[DÁTUM],G35,údaje[ČINNOSť],$H$8)","v":0},{"$f":"IFERROR(AVERAGEIFS(údaje[KM/L],údaje[DÁTUM],G35,údaje[ČINNOSť],$I$8),NA())","v":{"$error":"#N/A"}},{"$f":"IFERROR(AVERAGEIFS(údaje[¢/KILOMETER],údaje[DÁTUM],G35,údaje[ČINNOSť],$J$8),NA())","v":{"$error":"#N/A"}}]
[{"$nulls":5},27,"2012-05-27",{"$f":"SUMIFS(údaje[KILOMETRE],údaje[DÁTUM],G36,údaje[ČINNOSť],$H$8)","v":0},{"$f":"IFERROR(AVERAGEIFS(údaje[KM/L],údaje[DÁTUM],G36,údaje[ČINNOSť],$I$8),NA())","v":{"$error":"#N/A"}},{"$f":"IFERROR(AVERAGEIFS(údaje[¢/KILOMETER],údaje[DÁTUM],G36,údaje[ČINNOSť],$J$8),NA())","v":{"$error":"#N/A"}}]
[{"$nulls":5},28,"2012-05-28",{"$f":"SUMIFS(údaje[KILOMETRE],údaje[DÁTUM],G37,údaje[ČINNOSť],$H$8)","v":0},{"$f":"IFERROR(AVERAGEIFS(údaje[KM/L],údaje[DÁTUM],G37,údaje[ČINNOSť],$I$8),NA())","v":{"$error":"#N/A"}},{"$f":"IFERROR(AVERAGEIFS(údaje[¢/KILOMETER],údaje[DÁTUM],G37,údaje[ČINNOSť],$J$8),NA())","v":{"$error":"#N/A"}}]
[{"$nulls":5},29,"2012-05-29",{"$f":"SUMIFS(údaje[KILOMETRE],údaje[DÁTUM],G38,údaje[ČINNOSť],$H$8)","v":0},{"$f":"IFERROR(AVERAGEIFS(údaje[KM/L],údaje[DÁTUM],G38,údaje[ČINNOSť],$I$8),NA())","v":{"$error":"#N/A"}},{"$f":"IFERROR(AVERAGEIFS(údaje[¢/KILOMETER],údaje[DÁTUM],G38,údaje[ČINNOSť],$J$8),NA())","v":{"$error":"#N/A"}}]
[{"$nulls":5},30,"2012-05-30",{"$f":"SUMIFS(údaje[KILOMETRE],údaje[DÁTUM],G39,údaje[ČINNOSť],$H$8)","v":0},{"$f":"IFERROR(AVERAGEIFS(údaje[KM/L],údaje[DÁTUM],G39,údaje[ČINNOSť],$I$8),NA())","v":{"$error":"#N/A"}},{"$f":"IFERROR(AVERAGEIFS(údaje[¢/KILOMETER],údaje[DÁTUM],G39,údaje[ČINNOSť],$J$8),NA())","v":{"$error":"#N/A"}}]
[{"$nulls":5},31,"2012-05-31",{"$f":"SUMIFS(údaje[KILOMETRE],údaje[DÁTUM],G40,údaje[ČINNOSť],$H$8)","v":0},{"$f":"IFERROR(AVERAGEIFS(údaje[KM/L],údaje[DÁTUM],G40,údaje[ČINNOSť],$I$8),NA())","v":{"$error":"#N/A"}},{"$f":"IFERROR(AVERAGEIFS(údaje[¢/KILOMETER],údaje[DÁTUM],G40,údaje[ČINNOSť],$J$8),NA())","v":{"$error":"#N/A"}}]
[{"$nulls":5},32,"2012-06-01",{"$f":"SUMIFS(údaje[KILOMETRE],údaje[DÁTUM],G41,údaje[ČINNOSť],$H$8)","v":0},{"$f":"IFERROR(AVERAGEIFS(údaje[KM/L],údaje[DÁTUM],G41,údaje[ČINNOSť],$I$8),NA())","v":{"$error":"#N/A"}},{"$f":"IFERROR(AVERAGEIFS(údaje[¢/KILOMETER],údaje[DÁTUM],G41,údaje[ČINNOSť],$J$8),NA())","v":{"$error":"#N/A"}}]
[{"$nulls":5},33,"2012-06-02",{"$f":"SUMIFS(údaje[KILOMETRE],údaje[DÁTUM],G42,údaje[ČINNOSť],$H$8)","v":0},{"$f":"IFERROR(AVERAGEIFS(údaje[KM/L],údaje[DÁTUM],G42,údaje[ČINNOSť],$I$8),NA())","v":{"$error":"#N/A"}},{"$f":"IFERROR(AVERAGEIFS(údaje[¢/KILOMETER],údaje[DÁTUM],G42,údaje[ČINNOSť],$J$8),NA())","v":{"$error":"#N/A"}}]
[{"$nulls":5},34,{"$f":"G42+1","v":"2012-06-03"},{"$f":"SUMIFS(údaje[KILOMETRE],údaje[DÁTUM],G43,údaje[ČINNOSť],$H$8)","v":0},{"$f":"IFERROR(AVERAGEIFS(údaje[KM/L],údaje[DÁTUM],G43,údaje[ČINNOSť],$I$8),NA())","v":{"$error":"#N/A"}},{"$f":"IFERROR(AVERAGEIFS(údaje[¢/KILOMETER],údaje[DÁTUM],G43,údaje[ČINNOSť],$J$8),NA())","v":{"$error":"#N/A"}}]
[{"$nulls":5},35,"2012-06-04",{"$f":"SUMIFS(údaje[KILOMETRE],údaje[DÁTUM],G44,údaje[ČINNOSť],$H$8)","v":0},{"$f":"IFERROR(AVERAGEIFS(údaje[KM/L],údaje[DÁTUM],G44,údaje[ČINNOSť],$I$8),NA())","v":{"$error":"#N/A"}},{"$f":"IFERROR(AVERAGEIFS(údaje[¢/KILOMETER],údaje[DÁTUM],G44,údaje[ČINNOSť],$J$8),NA())","v":{"$error":"#N/A"}}]
[{"$nulls":5},36,"2012-06-05",{"$f":"SUMIFS(údaje[KILOMETRE],údaje[DÁTUM],G45,údaje[ČINNOSť],$H$8)","v":0},{"$f":"IFERROR(AVERAGEIFS(údaje[KM/L],údaje[DÁTUM],G45,údaje[ČINNOSť],$I$8),NA())","v":{"$error":"#N/A"}},{"$f":"IFERROR(AVERAGEIFS(údaje[¢/KILOMETER],údaje[DÁTUM],G45,údaje[ČINNOSť],$J$8),NA())","v":{"$error":"#N/A"}}]
[{"$nulls":5},37,"2012-06-06",{"$f":"SUMIFS(údaje[KILOMETRE],údaje[DÁTUM],G46,údaje[ČINNOSť],$H$8)","v":0},{"$f":"IFERROR(AVERAGEIFS(údaje[KM/L],údaje[DÁTUM],G46,údaje[ČINNOSť],$I$8),NA())","v":{"$error":"#N/A"}},{"$f":"IFERROR(AVERAGEIFS(údaje[¢/KILOMETER],údaje[DÁTUM],G46,údaje[ČINNOSť],$J$8),NA())","v":{"$error":"#N/A"}}]
[{"$nulls":5},38,"2012-06-07",{"$f":"SUMIFS(údaje[KILOMETRE],údaje[DÁTUM],G47,údaje[ČINNOSť],$H$8)","v":0},{"$f":"IFERROR(AVERAGEIFS(údaje[KM/L],údaje[DÁTUM],G47,údaje[ČINNOSť],$I$8),NA())","v":{"$error":"#N/A"}},{"$f":"IFERROR(AVERAGEIFS(údaje[¢/KILOMETER],údaje[DÁTUM],G47,údaje[ČINNOSť],$J$8),NA())","v":{"$error":"#N/A"}}]
[{"$nulls":5},39,"2012-06-08",{"$f":"SUMIFS(údaje[KILOMETRE],údaje[DÁTUM],G48,údaje[ČINNOSť],$H$8)","v":0},{"$f":"IFERROR(AVERAGEIFS(údaje[KM/L],údaje[DÁTUM],G48,údaje[ČINNOSť],$I$8),NA())","v":{"$error":"#N/A"}},{"$f":"IFERROR(AVERAGEIFS(údaje[¢/KILOMETER],údaje[DÁTUM],G48,údaje[ČINNOSť],$J$8),NA())","v":{"$error":"#N/A"}}]
[{"$nulls":5},40,"2012-06-09",{"$f":"SUMIFS(údaje[KILOMETRE],údaje[DÁTUM],G49,údaje[ČINNOSť],$H$8)","v":0},{"$f":"IFERROR(AVERAGEIFS(údaje[KM/L],údaje[DÁTUM],G49,údaje[ČINNOSť],$I$8),NA())","v":{"$error":"#N/A"}},{"$f":"IFERROR(AVERAGEIFS(údaje[¢/KILOMETER],údaje[DÁTUM],G49,údaje[ČINNOSť],$J$8),NA())","v":{"$error":"#N/A"}}]
[{"$nulls":5},41,"2012-06-10",{"$f":"SUMIFS(údaje[KILOMETRE],údaje[DÁTUM],G50,údaje[ČINNOSť],$H$8)","v":0},{"$f":"IFERROR(AVERAGEIFS(údaje[KM/L],údaje[DÁTUM],G50,údaje[ČINNOSť],$I$8),NA())","v":{"$error":"#N/A"}},{"$f":"IFERROR(AVERAGEIFS(údaje[¢/KILOMETER],údaje[DÁTUM],G50,údaje[ČINNOSť],$J$8),NA())","v":{"$error":"#N/A"}}]
[{"$nulls":5},42,"2012-06-11",{"$f":"SUMIFS(údaje[KILOMETRE],údaje[DÁTUM],G51,údaje[ČINNOSť],$H$8)","v":0},{"$f":"IFERROR(AVERAGEIFS(údaje[KM/L],údaje[DÁTUM],G51,údaje[ČINNOSť],$I$8),NA())","v":{"$error":"#N/A"}},{"$f":"IFERROR(AVERAGEIFS(údaje[¢/KILOMETER],údaje[DÁTUM],G51,údaje[ČINNOSť],$J$8),NA())","v":{"$error":"#N/A"}}]
[{"$nulls":5},43,"2012-06-12",{"$f":"SUMIFS(údaje[KILOMETRE],údaje[DÁTUM],G52,údaje[ČINNOSť],$H$8)","v":0},{"$f":"IFERROR(AVERAGEIFS(údaje[KM/L],údaje[DÁTUM],G52,údaje[ČINNOSť],$I$8),NA())","v":{"$error":"#N/A"}},{"$f":"IFERROR(AVERAGEIFS(údaje[¢/KILOMETER],údaje[DÁTUM],G52,údaje[ČINNOSť],$J$8),NA())","v":{"$error":"#N/A"}}]
[{"$nulls":5},44,"2012-06-13",{"$f":"SUMIFS(údaje[KILOMETRE],údaje[DÁTUM],G53,údaje[ČINNOSť],$H$8)","v":0},{"$f":"IFERROR(AVERAGEIFS(údaje[KM/L],údaje[DÁTUM],G53,údaje[ČINNOSť],$I$8),NA())","v":{"$error":"#N/A"}},{"$f":"IFERROR(AVERAGEIFS(údaje[¢/KILOMETER],údaje[DÁTUM],G53,údaje[ČINNOSť],$J$8),NA())","v":{"$error":"#N/A"}}]
[{"$nulls":5},45,"2012-06-14",{"$f":"SUMIFS(údaje[KILOMETRE],údaje[DÁTUM],G54,údaje[ČINNOSť],$H$8)","v":0},{"$f":"IFERROR(AVERAGEIFS(údaje[KM/L],údaje[DÁTUM],G54,údaje[ČINNOSť],$I$8),NA())","v":{"$error":"#N/A"}},{"$f":"IFERROR(AVERAGEIFS(údaje[¢/KILOMETER],údaje[DÁTUM],G54,údaje[ČINNOSť],$J$8),NA())","v":{"$error":"#N/A"}}]
[{"$nulls":5},46,"2012-06-15",{"$f":"SUMIFS(údaje[KILOMETRE],údaje[DÁTUM],G55,údaje[ČINNOSť],$H$8)","v":0},{"$f":"IFERROR(AVERAGEIFS(údaje[KM/L],údaje[DÁTUM],G55,údaje[ČINNOSť],$I$8),NA())","v":{"$error":"#N/A"}},{"$f":"IFERROR(AVERAGEIFS(údaje[¢/KILOMETER],údaje[DÁTUM],G55,údaje[ČINNOSť],$J$8),NA())","v":{"$error":"#N/A"}}]
[{"$nulls":5},47,"2012-06-16",{"$f":"SUMIFS(údaje[KILOMETRE],údaje[DÁTUM],G56,údaje[ČINNOSť],$H$8)","v":0},{"$f":"IFERROR(AVERAGEIFS(údaje[KM/L],údaje[DÁTUM],G56,údaje[ČINNOSť],$I$8),NA())","v":{"$error":"#N/A"}},{"$f":"IFERROR(AVERAGEIFS(údaje[¢/KILOMETER],údaje[DÁTUM],G56,údaje[ČINNOSť],$J$8),NA())","v":{"$error":"#N/A"}}]
[{"$nulls":5},48,"2012-06-17",{"$f":"SUMIFS(údaje[KILOMETRE],údaje[DÁTUM],G57,údaje[ČINNOSť],$H$8)","v":0},{"$f":"IFERROR(AVERAGEIFS(údaje[KM/L],údaje[DÁTUM],G57,údaje[ČINNOSť],$I$8),NA())","v":{"$error":"#N/A"}},{"$f":"IFERROR(AVERAGEIFS(údaje[¢/KILOMETER],údaje[DÁTUM],G57,údaje[ČINNOSť],$J$8),NA())","v":{"$error":"#N/A"}}]
[{"$nulls":5},49,"2012-06-18",{"$f":"SUMIFS(údaje[KILOMETRE],údaje[DÁTUM],G58,údaje[ČINNOSť],$H$8)","v":0},{"$f":"IFERROR(AVERAGEIFS(údaje[KM/L],údaje[DÁTUM],G58,údaje[ČINNOSť],$I$8),NA())","v":{"$error":"#N/A"}},{"$f":"IFERROR(AVERAGEIFS(údaje[¢/KILOMETER],údaje[DÁTUM],G58,údaje[ČINNOSť],$J$8),NA())","v":{"$error":"#N/A"}}]
[{"$nulls":5},50,"2012-06-19",{"$f":"SUMIFS(údaje[KILOMETRE],údaje[DÁTUM],G59,údaje[ČINNOSť],$H$8)","v":0},{"$f":"IFERROR(AVERAGEIFS(údaje[KM/L],údaje[DÁTUM],G59,údaje[ČINNOSť],$I$8),NA())","v":{"$error":"#N/A"}},{"$f":"IFERROR(AVERAGEIFS(údaje[¢/KILOMETER],údaje[DÁTUM],G59,údaje[ČINNOSť],$J$8),NA())","v":{"$error":"#N/A"}}]
[{"$nulls":5},51,"2012-06-20",{"$f":"SUMIFS(údaje[KILOMETRE],údaje[DÁTUM],G60,údaje[ČINNOSť],$H$8)","v":0},{"$f":"IFERROR(AVERAGEIFS(údaje[KM/L],údaje[DÁTUM],G60,údaje[ČINNOSť],$I$8),NA())","v":{"$error":"#N/A"}},{"$f":"IFERROR(AVERAGEIFS(údaje[¢/KILOMETER],údaje[DÁTUM],G60,údaje[ČINNOSť],$J$8),NA())","v":{"$error":"#N/A"}}]
[{"$nulls":5},52,"2012-06-21",{"$f":"SUMIFS(údaje[KILOMETRE],údaje[DÁTUM],G61,údaje[ČINNOSť],$H$8)","v":0},{"$f":"IFERROR(AVERAGEIFS(údaje[KM/L],údaje[DÁTUM],G61,údaje[ČINNOSť],$I$8),NA())","v":{"$error":"#N/A"}},{"$f":"IFERROR(AVERAGEIFS(údaje[¢/KILOMETER],údaje[DÁTUM],G61,údaje[ČINNOSť],$J$8),NA())","v":{"$error":"#N/A"}}]
[{"$nulls":5},53,"2012-06-22",{"$f":"SUMIFS(údaje[KILOMETRE],údaje[DÁTUM],G62,údaje[ČINNOSť],$H$8)","v":0},{"$f":"IFERROR(AVERAGEIFS(údaje[KM/L],údaje[DÁTUM],G62,údaje[ČINNOSť],$I$8),NA())","v":{"$error":"#N/A"}},{"$f":"IFERROR(AVERAGEIFS(údaje[¢/KILOMETER],údaje[DÁTUM],G62,údaje[ČINNOSť],$J$8),NA())","v":{"$error":"#N/A"}}]
[{"$nulls":5},54,"2012-06-23",{"$f":"SUMIFS(údaje[KILOMETRE],údaje[DÁTUM],G63,údaje[ČINNOSť],$H$8)","v":0},{"$f":"IFERROR(AVERAGEIFS(údaje[KM/L],údaje[DÁTUM],G63,údaje[ČINNOSť],$I$8),NA())","v":{"$error":"#N/A"}},{"$f":"IFERROR(AVERAGEIFS(údaje[¢/KILOMETER],údaje[DÁTUM],G63,údaje[ČINNOSť],$J$8),NA())","v":{"$error":"#N/A"}}]
[{"$nulls":5},55,"2012-06-24",{"$f":"SUMIFS(údaje[KILOMETRE],údaje[DÁTUM],G64,údaje[ČINNOSť],$H$8)","v":0},{"$f":"IFERROR(AVERAGEIFS(údaje[KM/L],údaje[DÁTUM],G64,údaje[ČINNOSť],$I$8),NA())","v":{"$error":"#N/A"}},{"$f":"IFERROR(AVERAGEIFS(údaje[¢/KILOMETER],údaje[DÁTUM],G64,údaje[ČINNOSť],$J$8),NA())","v":{"$error":"#N/A"}}]
[{"$nulls":5},56,"2012-06-25",{"$f":"SUMIFS(údaje[KILOMETRE],údaje[DÁTUM],G65,údaje[ČINNOSť],$H$8)","v":0},{"$f":"IFERROR(AVERAGEIFS(údaje[KM/L],údaje[DÁTUM],G65,údaje[ČINNOSť],$I$8),NA())","v":{"$error":"#N/A"}},{"$f":"IFERROR(AVERAGEIFS(údaje[¢/KILOMETER],údaje[DÁTUM],G65,údaje[ČINNOSť],$J$8),NA())","v":{"$error":"#N/A"}}]
[{"$nulls":5},57,"2012-06-26",{"$f":"SUMIFS(údaje[KILOMETRE],údaje[DÁTUM],G66,údaje[ČINNOSť],$H$8)","v":0},{"$f":"IFERROR(AVERAGEIFS(údaje[KM/L],údaje[DÁTUM],G66,údaje[ČINNOSť],$I$8),NA())","v":{"$error":"#N/A"}},{"$f":"IFERROR(AVERAGEIFS(údaje[¢/KILOMETER],údaje[DÁTUM],G66,údaje[ČINNOSť],$J$8),NA())","v":{"$error":"#N/A"}}]
[{"$nulls":5},58,"2012-06-27",{"$f":"SUMIFS(údaje[KILOMETRE],údaje[DÁTUM],G67,údaje[ČINNOSť],$H$8)","v":0},{"$f":"IFERROR(AVERAGEIFS(údaje[KM/L],údaje[DÁTUM],G67,údaje[ČINNOSť],$I$8),NA())","v":{"$error":"#N/A"}},{"$f":"IFERROR(AVERAGEIFS(údaje[¢/KILOMETER],údaje[DÁTUM],G67,údaje[ČINNOSť],$J$8),NA())","v":{"$error":"#N/A"}}]
[{"$nulls":5},59,"2012-06-28",{"$f":"SUMIFS(údaje[KILOMETRE],údaje[DÁTUM],G68,údaje[ČINNOSť],$H$8)","v":0},{"$f":"IFERROR(AVERAGEIFS(údaje[KM/L],údaje[DÁTUM],G68,údaje[ČINNOSť],$I$8),NA())","v":{"$error":"#N/A"}},{"$f":"IFERROR(AVERAGEIFS(údaje[¢/KILOMETER],údaje[DÁTUM],G68,údaje[ČINNOSť],$J$8),NA())","v":{"$error":"#N/A"}}]
[{"$nulls":5},60,"2012-06-29",{"$f":"SUMIFS(údaje[KILOMETRE],údaje[DÁTUM],G69,údaje[ČINNOSť],$H$8)","v":0},{"$f":"IFERROR(AVERAGEIFS(údaje[KM/L],údaje[DÁTUM],G69,údaje[ČINNOSť],$I$8),NA())","v":{"$error":"#N/A"}},{"$f":"IFERROR(AVERAGEIFS(údaje[¢/KILOMETER],údaje[DÁTUM],G69,údaje[ČINNOSť],$J$8),NA())","v":{"$error":"#N/A"}}]